Cogmind - Beta 16.1 @@@ ROGUE MODE // 2026.04.25 @ 17:14:33 Player: Tereza Result: Destroyed by Combat Programmer with EMDS Performance ------------- Evolutions (9) 4500 Regions Visited (31) 6200 Robots Destroyed (332) 1660 Value Destroyed (11680) 11680 Prototype IDs (74) 1480 Alien Tech Used (2) 400 Bonus (9700) 9700 TOTAL SCORE: 35620 Bonus ------- High Alert Combat Kills 141 Follower Combat Kills 1655 Entered DSFs 500 Network Hubs Disabled 200 Aligned with FarCom 300 Met Data Miner 300 Met Zhirov 300 Built Enhanced Grunts 300 A7 Reached Mainframe 300 Met R17 at Cetus 500 Met MAIN.C 5000 Hacked MAIN.C 300 Friendly Fire -96 Cogmind --------- Core Integrity 0/1600 Matter 240/300 Energy 100/100 System Corruption 19% Temperature Cool (0) Movement Core (50) Location -1/Command Parts ------- > --- POWER (2) -------- (None) > --- PROPULSION (6) --- (None) > --- UTILITY (14) ----- Advanced Visual Processing Unit Advanced Signal Interpreter Melee Analysis Suite Advanced System Shield > --- WEAPON (3) ------- (None) > --- INVENTORY (5) ---- Field Propulsion Drive Experimental ECM Suite Improved Reaction Control System Force Lance Peak State ------------ > --- POWER ------------ Micro Antimatter Reactor Micro Antimatter Reactor > --- PROPULSION ------- Cooled Cesium-ion Thruster Cooled Nuclear Pulse Thruster Field Propulsion Array Diametric Drive Cooled Impulse Thruster > --- UTILITY ---------- Advanced Visual Processing Unit Long-range Sensor Array Advanced Signal Interpreter Advanced Terrain Scanner Melee Analysis Suite Advanced Target Analyzer Experimental ECM Suite Reaction Control System Phase Shifter Improved Cloaking Device System Shield Improved System Shield Improved System Shield Advanced System Shield > --- WEAPON ----------- Molecular Scythe Force Lance > --- INVENTORY -------- Field Propulsion Drive Improved Reaction Control System Transdimensional Reconstructor Heavy Shock Bomb Launcher Improved Datajack [Rating: 150] Favorites ----------- Power Reinforced Deuterium Engine Engine Reinforced Deuterium Engine Power Core Nuclear Core Reactor Quantum Reactor Propulsion Improved Treads Treads Improved Treads Leg Flexi-carbon Leg Wheel Wheel Hover Unit Improved Gravmag System Flight Unit Cooled Nuclear Pulse Thruster Utility Core Analyzer Device Cooling System Storage High-capacity Storage Unit Processor Core Analyzer Hackware Hacking Suite Protection Hardened Medium Armor Plating Weapon Improved Medium Laser Energy Gun Improved Medium Laser Energy Cannon Cooled Particle Cannon Ballistic Gun Light Assault Rifle Launcher Heavy Rocket Launcher Special Weapon Field Lobotomy Kit Impact Weapon Makeshift Hammer Slashing Weapon Molecular Scythe Piercing Weapon Force Lance Special Melee Weapon Dirty Datajack Build | -11 -10 -10 -9 -9 -9 -8 -8 -8 -7 -7 -7 -7 -6 -6 -6 -6 -6 -6 -5 -5 -5 -5 -5 -5 -4 -4 -3 -2 -2 -1 -1 ------- Run | Yrd Mat Min Mat Min Exi Min Mat Sto Fac Low Low Dat Pro Fac Ext Cet Arc Hub Fac Was Fac Upp Upp Zhi Pro Fac Res Res DSF Acc Com Slots Evolved 18 | . . . 2 . . . 2 . 2 . . . . 2 . . . . 2 . . . . . . 2 2 2 . 2 . Power 1 | . . . . . . . . . . . . . . 1 . . . . . . . . . . . . . . . . . Propulsion 4 | . . . 1 . . . 1 . 1 . . . . . . . . . 1 . . . . . . . . . . . . Utility 12 | . . . 1 . . . 1 . 1 . . . . 1 . . . . . . . . . . . 2 2 2 . 2 . Weapon 1 | . . . . . . . . . . . . . . . . . . . 1 . . . . . . . . . . . . Parts Attached 239 | 7 9 3 19 1 . 4 8 13 19 . 5 . 12 39 9 4 2 2 10 . 23 6 10 8 . 11 5 1 . 3 6 Power 31 | 1 . 1 1 1 . . 1 2 1 . . . 1 6 3 1 . . . . 3 1 4 1 . 1 1 . . . 1 Engine 15 | 1 . . 1 1 . . 1 1 1 . . . 1 4 2 . . . . . 2 . . . . . . . . . . Core 11 | . . 1 . . . . . 1 . . . . . 2 1 . . . . . . 1 4 . . 1 . . . . . Reactor 5 | . . . . . . . . . . . . . . . . 1 . . . . 1 . . 1 . . 1 . . . 1 Propulsion 82 | 2 3 . 8 . . . 5 4 9 . 2 . 7 13 3 1 1 2 4 . 4 2 3 3 . 4 2 . . . . Treads 18 | 2 2 . 8 . . . 5 . . . . . 1 . . . . . . . . . . . . . . . . . . Leg 53 | . . . . . . . . 4 9 . 2 . 6 13 3 1 1 2 4 . 3 2 3 . . . . . . . . Wheel 1 | . 1 . . . . . . . . . . . . . . . . . . . . . . . . . . . . . . Hover 1 | . . . . . . . . . . . . . . . . . . . . . . . . . . 1 . . . . . Flight 9 | . . . . . . . . . . . . . . . . . . . . . 1 . . 3 . 3 2 . . . . Utility 63 | 2 3 . 5 . . 1 1 4 7 . 1 . . 7 2 1 1 . 3 . 6 2 . 4 . 5 2 1 . 2 3 Device 33 | 1 1 . 3 . . . 1 2 5 . 1 . . 4 1 . . . 2 . 3 1 . . . 3 2 . . 1 2 Storage 8 | 1 2 . 1 . . . . 1 1 . . . . . . . . . . . 1 . . 1 . . . . . . . Processor 7 | . . . . . . 1 . . . . . . . . . . . . . . 1 1 . 1 . 2 . . . 1 . Hackware 10 | . . . . . . . . . 1 . . . . 3 . . 1 . 1 . 1 . . 1 . . . 1 . . 1 Protection 5 | . . . 1 . . . . 1 . . . . . . 1 1 . . . . . . . 1 . . . . . . . Artifact . | . . . . . . . . . . . . . . . . . . . . . . . . . . . . . . . . Weapon 63 | 2 3 2 5 . . 3 1 3 2 . 2 . 4 13 1 1 . . 3 . 10 1 3 . . 1 . . . 1 2 Energy Gun 28 | 1 . . 3 . . 2 1 3 2 . 1 . 1 7 1 1 . . 2 . 2 . 1 . . . . . . . . Energy Cannon 5 | . . . . . . . . . . . . . . . . . . . . . 4 . 1 . . . . . . . . Ballistic Gun 14 | 1 3 1 2 . . . . . . . . . 2 1 . . . . . . 4 . . . . . . . . . . Ballistic Cannon . | . . . . . . . . . . . . . . . . . . . . . . . . . . . . . . . . Launcher 6 | . . 1 . . . 1 . . . . 1 . . 1 . . . . 1 . . . . . . . . . . . 1 Special Weapon 1 | . . . . . . . . . . . . . 1 . . . . . . . . . . . . . . . . . . Impact Weapon 1 | . . . . . . . . . . . . . . . . . . . . . . . 1 . . . . . . . . Slashing Weapon 3 | . . . . . . . . . . . . . . 2 . . . . . . . . . . . . . . . 1 . Piercing Weapon 2 | . . . . . . . . . . . . . . 1 . . . . . . . . . . . 1 . . . . . Special Melee Weapon 3 | . . . . . . . . . . . . . . 1 . . . . . . . 1 . . . . . . . . 1 Unidentified Prototypes 19 | . . . 1 . . . 1 1 . . . . . 1 . 2 . . 2 . 2 . . 4 . 1 2 . . 1 1 Corrupted Parts 2 | . . . . . . . . . . . . . . . . . . . . . . . 2 . . . . . . . . System Corruption 18 | . . . . . . . . . . . . . . . . . . . . . . . 18 . . . . . . . . Parts Lost 97 | . 4 . 3 . . 1 . 4 5 . 6 . 11 4 3 1 1 . 2 3 10 3 15 . . 1 . . 1 1 18 Power 16 | . 1 . 1 . . . . 1 . . . . 1 2 1 . . . . . 2 1 5 . . . . . . . 1 Propulsion 30 | . 1 . 1 . . . . . 1 . 3 . 6 1 . 1 1 . 1 2 1 1 4 . . 1 . . . . 5 Utility 28 | . 1 . 1 . . 1 . 1 3 . 1 . . 1 2 . . . 1 . 3 . 3 . . . . . 1 . 9 Weapon 23 | . 1 . . . . . . 2 1 . 2 . 4 . . . . . . 1 4 1 3 . . . . . . 1 3 Highest Loss Streak 18 | . 3 . 2 . . 1 . 1 3 . 4 . 5 2 1 1 1 . 1 3 3 2 5 . . 1 . . 1 1 18 To Critical Strikes 2 | . . . . . . . . . . . 1 . . . . 1 . . . . . . . . . . . . . . . Average Backups 16 | 3 9 14 21 24 25 24 24 23 19 19 18 17 12 19 19 19 19 20 19 11 7 9 9 8 5 4 4 5 5 4 4 Power 1 | . 1 1 . 1 1 1 1 . 1 1 1 1 1 1 1 2 3 3 3 2 1 1 . . 1 . . . . . . Propulsion 3 | 1 2 3 5 6 6 6 7 6 3 4 2 2 . 4 5 4 3 3 2 2 1 2 1 . . . . . . . 1 Utility 6 | . 3 6 9 13 11 11 9 8 7 7 8 8 8 7 5 5 6 6 6 2 1 1 2 1 1 1 1 2 2 1 1 Weapon 4 | . 1 3 5 4 6 4 5 5 5 4 4 4 . 4 5 5 5 5 4 2 2 4 4 5 1 . 1 1 1 1 . Tool/Special . | . . . . . . . . . . . . . . . . . . . . . . . . . . . . . . . . Unused Backups 95 | . 1 . 14 4 . 1 11 7 8 1 . . . 9 3 4 2 . 4 10 5 4 . 4 . . . . . 1 2 Power 7 | . . . 1 . . . 1 . 1 1 . . . 1 1 . . . . . 1 . . . . . . . . . . Propulsion 23 | . . . 2 1 . . 3 6 2 . . . . 1 . . . . 3 3 1 . . . . . . . . . 1 Utility 24 | . . . . 3 . 1 5 . 1 . . . . 1 1 . 2 . . 5 2 1 . . . . . . . 1 1 Weapon 39 | . 1 . 11 . . . 2 1 3 . . . . 6 1 4 . . 1 1 1 3 . 4 . . . . . . . Tool/Special 2 | . . . . . . . . . 1 . . . . . . . . . . 1 . . . . . . . . . . . Average Slot Usage (%) 91 | . 91 92 98 100 77 97 99 99 99 100 96 87 83 97 99 100 99 100 95 70 73 76 61 59 57 73 87 83 84 78 77 Engine 6 | . 6 . 8 11 11 11 9 7 3 7 7 7 6 7 9 6 6 6 5 5 4 5 1 . . . . . . . . Core 1 | . . 6 2 . . . . 1 3 . . . . 2 2 . . . . . . 4 6 4 . 2 4 4 4 4 . Treads 11 | . 24 28 28 33 33 33 35 26 . . . . 3 1 . . . . . . . . . . . . . . . . . Leg 15 | . . . . . . . . 9 37 38 37 38 26 31 33 33 32 33 30 16 11 12 18 16 . . . . . . . Flight 1 | . . . . . . . . . . . . . . . . . . . . . . . . 4 16 18 23 21 21 20 17 Device 12 | . 13 14 19 22 22 18 17 9 14 15 12 15 15 5 8 6 6 6 5 11 10 11 8 5 5 12 21 21 19 16 17 Storage 7 | . 14 14 11 11 11 11 9 9 7 7 7 7 7 6 6 6 6 6 5 1 2 5 5 4 . . . . . . . Processor 5 | . . . . . . 1 9 9 7 7 7 7 7 6 6 6 6 6 5 5 6 5 5 6 11 14 14 13 13 14 15 Hackware 7 | . . . . . . . . . 6 7 7 7 7 19 14 13 13 13 11 11 11 11 5 7 11 10 9 9 13 12 13 Protection 1 | . . . 1 . . . . 8 . . . . . . 2 6 6 6 4 . . . . 1 5 2 . . . . . Energy Gun 9 | . 1 . 16 22 . 21 17 18 14 15 14 3 4 7 13 13 13 12 16 10 3 . . . . . . . . . . Energy Cannon 1 | . . . . . . . . . . . . . . . . . . . . . 10 10 2 . . . . . . . . Ballistic Gun 3 | . 26 27 5 . . . . . . . . . 2 5 . . . . . . 1 . . . . . . . . . . Peak Build Rating 150 | 7 8 10 20 23 19 28 37 44 56 55 56 56 56 75 80 92 92 91 113 109 98 96 88 85 61 106 126 129 129 132 150 Average Rating 54 | 6 6 8 16 21 18 25 36 37 50 55 53 47 44 65 77 89 90 91 107 85 89 92 64 52 60 88 123 126 126 129 124 On Entrance 63 | . 7 7 10 20 18 19 28 36 44 55 55 56 56 53 75 80 92 91 91 109 72 98 88 44 61 61 106 126 129 124 131 Avg Prop Armor Cover (%) 7 | . 14 . 17 . . . . . 5 5 5 . 8 6 . . . . . . 1 . . 29 . 6 4 . . . 3 Naked Turns . | . . . . . . . . . . . . . . . . . . . . . . . . . . . . . . . . Heaviest Build 110 | 13 23 28 110 99 93 99 102 103 70 65 69 69 69 68 85 95 94 97 99 92 68 65 46 29 5 18 28 28 28 28 34 Greatest Support 117 | 40 40 40 66 66 66 66 89 89 100 80 98 98 98 100 97 97 96 86 113 108 100 117 117 46 27 33 43 43 52 52 52 Greatest Overweight (x) 9 | . 2 . 9 1 1 1 1 1 . . 1 . 1 1 . . 1 1 1 . 1 . . 1 . . . . . . 2 Average Overweight (x) . | . . . 3 1 1 1 1 . . . . . . . . . . 1 . . . . . . . . . . . . . Largest Inventory Capacity 25 | 8 15 15 25 25 25 25 25 25 20 20 20 20 20 20 20 20 20 20 20 20 10 10 10 10 5 5 5 5 5 5 5 Average Capacity 17 | 7 10 15 24 25 25 25 25 23 20 20 20 20 20 20 20 20 20 20 20 9 7 10 10 8 5 5 5 5 5 5 5 Most Carried 25 | 5 11 15 25 25 25 25 25 25 20 20 20 18 16 20 20 20 20 20 20 20 10 10 10 10 5 5 5 5 5 5 5 Average Carried 16 | 3 9 14 21 24 24 24 24 23 19 19 18 17 12 19 19 19 19 20 19 9 7 9 9 8 5 4 4 5 5 4 4 Final Capacity 25 | 8 15 15 25 25 25 25 25 20 20 20 20 20 20 20 20 20 20 20 20 5 10 10 10 5 5 5 5 5 5 5 5 Final Carried 25 | 5 11 15 25 25 25 25 25 20 18 20 16 16 15 20 20 20 20 20 20 5 10 8 9 5 5 5 5 5 5 5 4 Class Distribution -------------------- 43% | Mutant 18% | Scavenger-Mutant 16% | Hacker-Mutant 5% | Commander-Mutant 4% | Hacker-Ninja 3% | Hacker-Skirmisher Dominant Class ---------------- Mutant | -10/Materials Mutant | -10/Mines Scavenger-Mutant | -9/Materials Mutant | -9/Mines Mutant | -9/Exiles Mutant | -8/Mines Mutant | -8/Materials Mutant | -8/Storage Mutant | -7/Factory Mutant | -7/Lower Caves Mutant | -7/Lower Caves Mutant | -7/Data Miner Mutant | -6/Proximity Caves Hacker-Mutant | -6/Factory Hacker-Mutant | -6/Extension Commander-Mutant | -6/Cetus Commander-Mutant | -6/Archives Scavenger-Mutant | -6/Hub_04(d) Scavenger-Skirmisher | -5/Factory Scavenger-Mutant | -5/Waste Hacker-Skirmisher | -5/Factory Hacker-Mutant | -5/Upper Caves Scavenger-Mutant | -5/Upper Caves Scavenger-Mutant | -5/Zhirov Hacker-Sprinter | -4/Proximity Caves Hacker-Ninja | -4/Factory Hacker-Ninja | -3/Research Hacker-Ninja | -2/Research Hacker-Ninja | -2/DSF Hacker-Ninja | -1/Access Hacker-Ninja | -1/Command Resources | -11 -10 -10 -9 -9 -9 -8 -8 -8 -7 -7 -7 -7 -6 -6 -6 -6 -6 -6 -5 -5 -5 -5 -5 -5 -4 -4 -3 -2 -2 -1 -1 ----------- Run | Yrd Mat Min Mat Min Exi Min Mat Sto Fac Low Low Dat Pro Fac Ext Cet Arc Hub Fac Was Fac Upp Upp Zhi Pro Fac Res Res DSF Acc Com Matter Collected 4701 | 321 322 117 524 33 . 80 76 178 204 28 234 . 169 778 189 60 27 10 225 . 413 212 168 . . 56 191 . . 86 . Remotely . | . . . . . . . . . . . . . . . . . . . . . . . . . . . . . . . . Salvage Created 14961 | 179 457 99 1503 . . 287 1220 1755 988 53 435 . 308 1448 1702 127 175 316 238 . 1500 477 1339 . . 56 159 . . 140 . Parts 676 | 17 41 8 91 . . 19 47 89 29 2 10 . 9 81 58 5 14 11 7 . 78 18 25 . . . 6 . . 11 . Haulers Intercepted 28 | . 2 . 5 . . . 4 6 1 . . . . 2 4 . . . 1 . 2 . . . . . 1 . . . . Recyclers Shooed 12 | 2 1 . . . . . . 2 . . . . . 4 . . . . . . 3 . . . . . . . . . . Parts Field Recycled . | . . . . . . . . . . . . . . . . . . . . . . . . . . . . . . . . Retrieved Matter . | . . . . . . . . . . . . . . . . . . . . . . . . . . . . . . . . Parts Self-Destructed 50 | . . . . . . . . . . 3 6 . 10 . . . . . . . . 18 13 . . . . . . . . Prevented 6 | . . . . . . . . . . . . . . . . . . . . . . . 6 . . . . . . . . Parts Restored . | . . . . . . . . . . . . . . . . . . . . . . . . . . . . . . . . Kills | -11 -10 -10 -9 -9 -9 -8 -8 -8 -7 -7 -7 -7 -6 -6 -6 -6 -6 -6 -5 -5 -5 -5 -5 -5 -4 -4 -3 -2 -2 -1 -1 ------- Run | Yrd Mat Min Mat Min Exi Min Mat Sto Fac Low Low Dat Pro Fac Ext Cet Arc Hub Fac Was Fac Upp Upp Zhi Pro Fac Res Res DSF Acc Com Combat Hostiles Destroyed 231 | . 12 5 27 . . 9 19 22 20 1 19 . 5 22 20 2 . 5 2 . 18 10 11 . . . . . . 2 . Melee 10 | . . . . . . . . . . . . . . 2 . . . . . . . 1 5 . . . . . . 2 . Guns 150 | . 12 2 22 . . 5 17 21 16 1 7 . 3 20 15 2 . 2 2 . 3 . . . . . . . . . . Cannons 21 | . . . . . . . . . . . . . . . . . . . . . 13 6 2 . . . . . . . . AOE 32 | . . 3 4 . . 3 . . . . 12 . . . 4 . . 3 . . 1 2 . . . . . . . . . Classes Destroyed 16 | 1 7 . 3 . . . 1 . 1 . 1 . . . 1 . . 1 . . . . . . . . . . . . . Worker 14 | . 1 . . . . . . 1 . . . . . 2 . . . . . . 10 . . . . . . . . . . Builder 6 | . 1 . 1 . . 1 . . . . . . . . 1 . . . . . 2 . . . . . . . . . . Tunneler 10 | 8 . . . . . . . . . . . . . 1 . . . . . . 1 . . . . . . . . . . Hauler 29 | . 2 . 5 . . . 4 6 1 . . . . 2 4 . . . 1 . 2 . . . . 1 1 . . . . Recycler 14 | . . . 2 . . 1 2 4 . . . . . 2 1 . . . . . 2 . . . . . . . . . . Operator 10 | . 1 . 1 . . . . 1 1 . . . . . . . 5 1 . . . . . . . . . . . . . Watcher 17 | . 1 . 4 . . . 1 1 3 . . . . 1 2 . . . . . 1 . . . . . 2 . . 1 . Swarmer 65 | . 6 3 7 . . 6 4 3 8 . 11 . . 9 1 . . . . . 4 3 . . . . . . . . . Grunt 83 | . 6 2 10 . . 3 9 10 3 1 2 . 3 6 13 . . 2 2 . 2 2 7 . . . . . . . . Brawler 4 | . . . . . . . . . . . 3 . . . . . . . . . . . 1 . . . . . . . . Duelist 6 | . . . 1 . . . 1 . . . 2 . . . . . . . . . . 2 . . . . . . . . . Protector 1 | . . . . . . . . . . . . . . . . . . 1 . . . . . . . . . . . . . Sentry 35 | . . . 9 . . . 4 8 4 . 1 . 1 2 3 . . . . . 1 1 1 . . . . . . . . Hunter 14 | . . . . . . . 1 1 . . . . 1 1 1 . . 2 . . 3 2 2 . . . . . . . . Programmer 19 | . . . . . . . . . 5 . . . . 4 . . . . . . 8 . . . . . . . . 2 . Behemoth 2 | . . . . . . . . . . . . . . . 2 . . . . . . . . . . . . . . . . Cetus Guard 2 | . . . . . . . . . . . . . . . . 2 . . . . . . . . . . . . . . . Enhanced Grunt 1 | . . . . . . . . . . . . . . . . . . 1 . . . . . . . . . . . . . Best Kill Streak 14 | 3 4 3 5 . . 5 5 5 6 1 14 . 3 7 5 1 1 4 2 . 13 3 4 . . . 1 . . 2 . Combat Bots Only 14 | . 2 3 4 . . 3 4 4 6 1 14 . 3 3 4 1 . 3 2 . 4 3 4 . . . . . . 2 . Max Kills in Single Turn 6 | 1 1 2 4 . . 2 1 1 2 1 4 . 1 2 5 1 1 4 1 . 6 2 1 . . 1 1 . . 1 . Gunslinging 1 | . . . 1 . . . . . 1 . . . . . . . . . . . . . . . . . . . . . . Exploded 4 | . . 2 4 . . 2 . . . . 3 . . . 4 . . 3 . . 1 2 . . . . . . . . . Melee 1 | . . . . . . . . . . . . . . 1 . . . . . . . 1 1 . . . . . . 1 . Uniques/NPCs Destroyed . | . . . . . . . . . . . . . . . . . . . . . . . . . . . . . . . . Combat | -11 -10 -10 -9 -9 -9 -8 -8 -8 -7 -7 -7 -7 -6 -6 -6 -6 -6 -6 -5 -5 -5 -5 -5 -5 -4 -4 -3 -2 -2 -1 -1 -------- Run | Yrd Mat Min Mat Min Exi Min Mat Sto Fac Low Low Dat Pro Fac Ext Cet Arc Hub Fac Was Fac Upp Upp Zhi Pro Fac Res Res DSF Acc Com Hostile Shots Fired 1869 | . 81 23 113 . . 45 100 82 252 2 77 . 115 188 187 28 9 14 12 4 178 84 144 . 23 8 . . 7 12 81 Missed 602 | . 17 8 31 . . 13 32 22 80 1 19 . 38 68 73 10 4 4 3 . 48 32 38 . 14 2 . . 5 6 34 Hits 1267 | . 64 15 82 . . 32 68 60 172 1 58 . 77 120 114 18 5 10 9 4 130 52 106 . 9 6 . . 2 6 47 Melee 11 | . . . 2 . . . 1 . . . . . . . . . . . . 4 . . 3 . . . . . 1 . . Projectile 1256 | . 64 15 80 . . 32 67 60 172 1 58 . 77 120 114 18 5 10 9 . 130 52 103 . 9 6 . . 1 6 47 AOE 9 | . . . . . . . . . . . . . . . . . . . . . 1 . . . . . . . . 1 7 Critical Strikes 55 | . 1 1 4 . . 1 5 3 2 . 3 . . 3 3 2 . . . 1 5 1 11 . . . . . 1 . 8 Part Disruptions 4 | . . . . . . . . . 1 . . . . . . . . . . . 1 . . . . . . . . . 2 Damage Taken 20574 | . 750 196 1082 . . 316 665 854 1663 17 954 . 1199 1800 1272 373 122 455 171 188 2494 1072 2089 . 130 248 . . 121 259 2084 Core 3678 | . 141 53 125 . . 17 38 42 232 . 128 . 94 224 146 73 25 47 . . 320 68 259 . 31 68 . . 30 65 1452 Absorbed by Shields 1019 | . . . . . . . 264 . 318 . . . . . 256 181 . . . . . . . . . . . . . . . Redirected to Shielding 87 | . . . . . . . . . . . . . . . . . . . . . . . . . 14 73 . . . . . Regen/Repaired (Parts) 299 | . 208 . 91 . . . . . . . . . . . . . . . . . . . . . . . . . . . . Core Remaining (%) 66 | 100 . 22 . . . 64 . 85 . . . . 35 . . . . 39 . . . . . . 32 94 100 . 97 . . Volleys Fired 913 | 17 86 12 97 . . 20 77 80 84 2 20 . 45 75 74 12 35 11 11 8 88 33 21 . . 4 . . . . 1 Largest 3 | 2 2 2 2 . . 2 2 2 2 2 2 . 2 2 2 2 2 2 3 3 3 2 1 . . 1 . . . . 1 Hottest 321 | 70 70 50 130 . . 112 112 121 150 105 170 . 170 120 146 161 321 161 240 240 210 60 90 . . 88 . . . . 46 Shots Fired 1787 | 34 171 24 196 1 . 38 154 160 163 5 40 1 69 151 144 25 66 20 33 19 189 59 20 . . 4 . . . . 1 Gun 1554 | 34 171 21 195 1 . 35 154 160 163 5 31 1 66 151 143 25 66 18 33 17 60 . . . . 4 . . . . . Cannon 208 | . . . . . . . . . . . . . . . . . . . . . 129 59 20 . . . . . . . . Launcher 20 | . . 3 1 . . 3 . . . . 9 . . . 1 . . 2 . . . . . . . . . . . . 1 Special 5 | . . . . . . . . . . . . . 3 . . . . . . 2 . . . . . . . . . . . Kinetic 386 | 17 163 21 79 . . . . . . . . . . 85 . . . . . . 21 . . . . . . . . . . Thermal 1345 | 17 8 . 116 1 . 35 154 160 163 5 31 1 66 59 143 25 66 18 33 17 159 59 5 . . 4 . . . . . Explosive 19 | . . 3 1 . . 3 . . . . 9 . . . 1 . . 2 . . . . . . . . . . . . . Electromagnetic 32 | . . . . . . . . . . . . . . 7 . . . . . . 9 . 15 . . . . . . . 1 Robot Hit Streak 33 | 5 12 5 16 . . 5 11 14 12 2 16 . 7 12 33 11 3 13 6 5 16 4 6 . . 5 . . . . 6 Robot Miss Streak 12 | 2 7 2 6 1 . 4 4 2 4 1 4 . 5 6 3 1 3 12 3 2 4 4 3 . . . . . . . . Penetration Max 1 | . . . . . . . . . . . . . . 1 . . . . . . . . . . . . . . . . . Secondary Targets 18 | . . 1 2 . . . . 3 2 . 1 . 1 4 1 . . 2 1 . . . . . . . . . . . . Max Gunslinging Chain 1 | . . 1 1 . . . . 1 1 . 1 . 1 1 1 . . 1 1 . . . . . . . . . . . . Shots Hit Robots 1182 | 22 115 16 135 . . 20 91 107 101 2 22 . 41 100 105 18 33 11 17 13 109 38 43 . . 4 4 . . 11 4 Core Hits 605 | 8 38 10 59 . . 13 39 51 37 2 31 . 14 62 70 13 21 39 8 . 56 16 11 . . 1 2 . . 2 2 Critical Kills 1 | . . . . . . . . . . . . . . . . . . . . . . 1 . . . . . . . . . Critical Parts Destroyed 8 | . . . 1 . . . . . . . . . . 1 . . . . . . . . 4 . . 2 . . . . . Critical Strikes 75 | 1 . . 5 . . 5 15 7 7 . 5 . 6 6 3 3 2 . . . . 2 5 . . 2 . . . . 1 Burn 63 | 1 . . 4 . . 5 15 7 7 . 5 . 6 5 3 3 2 . . . . . . . . . . . . . . Meltdown 1 | . . . . . . . . . . . . . . . . . . . . . . 1 . . . . . . . . . Destroy 4 | . . . 1 . . . . . . . . . . 1 . . . . . . . . . . . 2 . . . . . Corrupt 1 | . . . . . . . . . . . . . . . . . . . . . . . 1 . . . . . . . . Smash 4 | . . . . . . . . . . . . . . . . . . . . . . . 4 . . . . . . . . Sever 1 | . . . . . . . . . . . . . . . . . . . . . . 1 . . . . . . . . . Impale 1 | . . . . . . . . . . . . . . . . . . . . . . . . . . . . . . . 1 Melee Attacks 176 | . . . . . . . . . . . . . . 8 . . . . . . . 30 49 . . 15 18 . . 31 25 Impact 53 | . . . . . . . . . . . . . . . . . . . . . . . 31 . . 15 6 . . 1 . Slashing 76 | . . . . . . . . . . . . . . 2 . . . . . . . 10 18 . . . . . . 27 19 Piercing 46 | . . . . . . . . . . . . . . 6 . . . . . . . 20 . . . . 12 . . 3 5 Sneak Attacks 6 | . . . . . . . . . . . . . . . . . . . . . . 4 . . . . 2 . . . . Combat Hostiles 3 | . . . . . . . . . . . . . . . . . . . . . . 3 . . . . . . . . . Follow-up Attacks 1 | . . . . . . . . . . . . . . . . . . . . . . . . . . . 1 . . . . Damage Inflicted 31254 | 269 1175 273 2152 . . 654 1652 2038 2276 54 1638 . 695 2361 3095 564 989 1451 442 365 4454 731 2574 . . 108 350 . . 755 139 Guns 18999 | 269 1169 112 1978 . . 377 1652 2036 2276 54 336 . 695 2232 2414 564 989 235 442 365 696 . . . . 108 . . . . . Cannons 3465 | . . . . . . . . . . . . . . . . . . . . . 2545 465 455 . . . . . . . . Explosions 4994 | . . 161 174 . . 277 . . . . 1302 . . . 681 . . 1216 . . 1169 . . . . . . . . . 14 Melee 3744 | . . . . . . . . . . . . . . 129 . . . . . . . 266 2119 . . . 350 . . 755 125 Ramming 52 | . 6 . . . . . . 2 . . . . . . . . . . . . 44 . . . . . . . . . . Kinetic 3277 | 107 1070 112 679 . . . . . . . . . . 1128 . . . . . . 181 . . . . . . . . . . Thermal 18870 | 162 99 . 1299 . . 377 1652 2036 2276 54 336 . 695 977 2503 564 989 235 442 365 3022 465 214 . . 108 . . . . . Explosive 4879 | . . 161 174 . . 277 . . . . 1302 . . . 592 . . 1204 . . 1169 . . . . . . . . . . Electromagnetic 432 | . . . . . . . . . . . . . . 127 . . . 12 . . 38 . 241 . . . . . . . 14 Impact 1805 | . . . . . . . . . . . . . . . . . . . . . . . 1743 . . . 62 . . . . Slashing 1435 | . . . . . . . . . . . . . . . . . . . . . . 229 376 . . . . . . 755 75 Piercing 504 | . . . . . . . . . . . . . . 129 . . . . . . . 37 . . . . 288 . . . 50 Highest Corruption 42 | . . . 5 5 5 5 . 2 6 6 6 6 6 3 3 3 3 6 . 14 24 24 42 42 42 . . . . 1 18 Average Corruption 8 | . . . 3 5 5 5 . 2 3 6 6 6 6 2 3 3 3 3 . 5 17 24 31 42 42 . . . . 1 3 Corruption Purged . | . . . . . . . . . . . . . . . . . . . . . . . . . . . . . . . . Corruption Blocked . | . . . . . . . . . . . . . . . . . . . . . . . . . . . . . . . . Effects 467 | . . . 44 10 10 12 . 14 28 13 13 3 16 23 34 9 7 9 . 2 102 47 42 9 15 . . . . . 5 Message Errors 114 | . . . 12 2 3 2 . 5 4 2 2 . 6 6 12 2 3 3 . 1 21 10 8 2 6 . . . . . 2 Matter Fused 100 | . . . 17 4 . 2 . 4 5 1 6 1 2 5 3 3 1 1 . . 17 13 10 3 2 . . . . . . Heat Flow Errors 52 | . . . 4 . 1 2 . 3 3 2 2 . . 2 7 . . 2 . . 13 5 3 1 1 . . . . . 1 Energy Discharges 52 | . . . 3 1 2 2 . 1 5 1 1 . 3 1 4 2 2 3 . 1 8 3 7 1 1 . . . . . . Parts Rejected 2 | . . . . . . . . . . . . . 1 . . . . . . . 1 . . . . . . . . . . Parts Fused 6 | . . . 1 . . . . . . 2 . . . . . . . . . . 2 . 1 . . . . . . . . Data Loss (minor) 61 | . . . 5 . 2 3 . 1 4 4 2 1 1 6 4 . . . . . 10 8 4 2 4 . . . . . . Data Loss (major) 14 | . . . . 1 2 . . . 1 . . . 1 1 1 1 . . . . 4 . 2 . . . . . . . . Misfires 15 | . . . 2 1 . 1 . . 2 1 . 1 . 1 . 1 . . . . 3 1 1 . . . . . . . . Alerts 8 | . . . . 1 . . . . . . . . 1 1 . . . . . . 5 . . . . . . . . . . Misdirections 9 | . . . . . . . . . . . . . . . . . . . . . 2 . 4 . 1 . . . . . 2 Weapon Failures 34 | . . . . . . . . . 4 . . . 1 . 3 . 1 . . . 16 7 2 . . . . . . . . Overload Shots 11 | . . . . . . . . . . . . . . . . . 1 . . . 5 . 5 . . . . . . . . Effects 1 | . . . . . . . . . . . . . . . . . . . . . 1 . . . . . . . . . . Short Circuit 1 | . . . . . . . . . . . . . . . . . . . . . 1 . . . . . . . . . . Overflow Damage 1905 | . . . 4 . . . . . . . 33 . . . 9 . . 15 . . 179 22 1439 . . . 45 . . 139 20 Projectiles 114 | . . . . . . . . . . . . . . . . . . . . . 77 . 37 . . . . . . . . Explosions 163 | . . . 4 . . . . . . . 33 . . . 9 . . 15 . . 102 . . . . . . . . . . Melee 1628 | . . . . . . . . . . . . . . . . . . . . . . 22 1402 . . . 45 . . 139 20 Knockbacks 2 | . . . . . . . . . . . . . . . . . . . . . . . 2 . . . . . . . . Impact 2 | . . . . . . . . . . . . . . . . . . . . . . . 2 . . . . . . . . Kinetic . | . . . . . . . . . . . . . . . . . . . . . . . . . . . . . . . . Secondary . | . . . . . . . . . . . . . . . . . . . . . . . . . . . . . . . . Self-Inflicted Damage 359 | . 3 . . . . 23 . . . . 19 . . . . . . 142 . . 172 . . . . . . . . . . Shots 9 | . . . . . . 2 . . . . 1 . . . . . . 4 . . 2 . . . . . . . . . . Rammed 2 | . 1 . . . . . . 1 . . . . . . . . . . . . . . . . . . . . . . . Targets Rammed 6 | . 1 . . . . . . 1 . . . . . . . . . . . . 4 . . . . . . . . . . Kicked 4 | . . . . . . . . . . . . . . . . . . . . . 4 . . . . . . . . . . Crushed . | . . . . . . . . . . . . . . . . . . . . . . . . . . . . . . . . Highest Temperature 443 | 54 90 5 246 . 110 257 16 249 212 238 429 41 441 214 210 179 297 229 443 140 223 216 413 132 62 6 2 . 62 115 237 Average Temperature 80 | 18 21 4 45 . 68 154 7 44 52 106 140 22 190 69 50 76 87 71 180 84 35 92 95 76 18 3 1 . 46 55 108 Received Heat Transfer 4375 | . 354 90 435 . . 54 328 396 214 9 117 . 246 477 369 13 27 18 81 . 111 174 754 . 9 18 . . . . 81 Effects 7 | . . . . . . 1 . . . . . . 5 . . . 1 . . . . . . . . . . . . . . Shutdowns 2 | . . . . . . . . . . . . . 2 . . . . . . . . . . . . . . . . . . Energy Bleed 2 | . . . . . . 1 . . . . . . . . . . 1 . . . . . . . . . . . . . . Interference 2 | . . . . . . . . . . . . . 2 . . . . . . . . . . . . . . . . . . Short Circuit 1 | . . . . . . . . . . . . . 1 . . . . . . . . . . . . . . . . . . Siege Activations . | . . . . . . . . . . . . . . . . . . . . . . . . . . . . . . . . Martial Activations . | . . . . . . . . . . . . . . . . . . . . . . . . . . . . . . . . Shielding Activations . | . . . . . . . . . . . . . . . . . . . . . . . . . . . . . . . . Robots Disrupted . | . . . . . . . . . . . . . . . . . . . . . . . . . . . . . . . . Combat Hostiles . | . . . . . . . . . . . . . . . . . . . . . . . . . . . . . . . . Robots Corrupted 12 | . . . . . . . . . . . . . . 1 . . . . . . . . 10 . . . 1 . . . . Combat Hostiles 4 | . . . . . . . . . . . . . . . . . . . . . . . 4 . . . . . . . . Parts Fried 15 | . . . . . . . . . . . . . . . . . . . . . . . 15 . . . . . . . . Impact Corruptions 78 | . . . . . . . . . . . . . . . . . . . . . . . 77 . . . 1 . . . . Robots Melted 15 | . . . 1 . . 1 2 1 5 . . . 2 . 1 . . . . . 1 1 . . . . . . . . . Combat Hostiles 14 | . . . 1 . . 1 2 1 4 . . . 2 . 1 . . . . . 1 1 . . . . . . . . . Parts Melted 103 | 1 . . 7 . . 4 21 8 20 1 2 . 8 4 8 . 2 . 1 . 12 4 . . . . . . . . . Heat Transferred 37381 | 555 296 . 3182 . . 1147 4625 4514 4630 137 1231 . 2171 2035 4231 961 1554 315 629 481 3710 629 200 . . 148 . . . . . Parts Sabotaged . | . . . . . . . . . . . . . . . . . . . . . . . . . . . . . . . . Parts Stolen . | . . . . . . . . . . . . . . . . . . . . . . . . . . . . . . . . Parts Stripped . | . . . . . . . . . . . . . . . . . . . . . . . . . . . . . . . . Power Chain Reactions . | . . . . . . . . . . . . . . . . . . . . . . . . . . . . . . . . Alert | -11 -10 -10 -9 -9 -9 -8 -8 -8 -7 -7 -7 -7 -6 -6 -6 -6 -6 -6 -5 -5 -5 -5 -5 -5 -4 -4 -3 -2 -2 -1 -1 ------- Run | Yrd Mat Min Mat Min Exi Min Mat Sto Fac Low Low Dat Pro Fac Ext Cet Arc Hub Fac Was Fac Upp Upp Zhi Pro Fac Res Res DSF Acc Com Maximum Alert Level 3 | . . . . . . . . 1 1 . . . . 2 1 1 1 3 2 . 1 . . . . . . . . . . Low Security (%) 77 | 100 100 100 100 100 . 100 100 70 97 . . . . 13 92 65 61 3 . 100 63 . . . . 100 100 100 100 100 100 Level 1 18 | . . . . . . . . 29 2 . . . . 73 7 34 38 7 54 . 36 . . . . . . . . . . Level 2 3 | . . . . . . . . . . . . . . 13 . . . 51 45 . . . . . . . . . . . . Level 3 . | . . . . . . . . . . . . . . . . . . 37 . . . . . . . . . . . . . Level 4 . | . . . . . . . . . . . . . . . . . . . . . . . . . . . . . . . . Level 5 . | . . . . . . . . . . . . . . . . . . . . . . . . . . . . . . . . High Security . | . . . . . . . . . . . . . . . . . . . . . . . . . . . . . . . . Max Security . | . . . . . . . . . . . . . . . . . . . . . . . . . . . . . . . . Peak Influence 991 | 10 105 103 199 66 . 110 149 259 227 . . . . 600 236 243 218 991 476 105 268 . . . . 46 39 15 3 49 41 Initial 600 | . 3 . . 66 . . 14 61 110 . . . . 600 137 120 65 44 476 105 14 . . . . . . . 3 . 18 Average 122 | 1 27 22 104 22 . 49 30 135 86 . . . . 293 85 182 179 652 389 64 118 . . . . 8 12 6 1 11 11 Influence Increases 10813 | 40 418 207 840 . . 233 553 775 709 65 415 . 218 1364 935 339 274 1248 76 6 808 448 280 . 90 112 88 15 . 156 101 Destroy 0b10 Robot/C 5240 | . 240 160 540 . . 180 380 440 400 20 380 . 140 440 520 160 80 300 40 . 360 200 220 . . . . . . 40 . Destroy 0b10 Robot/NC 530 | 40 30 . 60 . . 10 35 65 25 . . . 10 45 40 10 25 20 5 . 90 . . . . . 15 . . 5 . Destroy Leader 1032 | . 66 30 168 . . 30 100 134 128 . 20 . 20 96 34 . . 52 . . 86 20 30 . . . 6 . . 12 . Allied During Kill 822 | . . 4 . . . . . . . . . . 3 . 232 150 105 325 . . . 3 . . . . . . . . . Trap Triggered on 0b10 20 | . . . . . . . . . 10 . . . . 10 . . . . . . . . . . . . . . . . . Successful Hack 331 | . 52 . 40 . . . 6 23 56 . . . . 10 35 7 . . . . 24 . . . . . 51 . . 27 . Disable Machine 705 | . . . 15 . . . 30 30 45 . . . . 30 30 . 60 285 15 . 135 . . . . 30 . . . . . Anti-Garrison Action 150 | . . . . . . . . . . . . . . . . . . 150 . . . . . . . . . . . . . Destroy Structure 453 | . . 13 2 . . 13 2 8 . . . . . 43 14 12 4 101 16 6 98 . . . . 22 16 . . 42 41 Advance Influence 600 | . . . . . . . . . . . . . . 600 . . . . . . . . . . . . . . . . . Partial Spotted 30 | . . . . . . . . . . . . . . . . . . . . . 15 . . . . . . 15 . . . Lose Combat Pursuer 900 | . 30 . 15 . . . . 75 45 45 15 . 45 90 30 . . 15 . . . 225 30 . 90 60 . . . 30 60 Influence Decreases 10813 | 35 423 207 670 170 . 195 446 676 730 288 224 191 218 1084 999 392 308 405 746 287 601 502 454 . 90 112 86 12 5 127 130 Entered New Map 1878 | . 2 . . 104 . . 24 84 134 83 . 191 . . 143 96 98 85 496 197 7 85 34 . . . . 2 2 . 11 Time Decay 7198 | 35 381 187 640 66 . 185 422 552 546 205 164 . 148 674 496 206 180 180 230 60 484 367 300 . 90 102 86 10 . 124 78 Search Patrol Dispatched 200 | . . . . . . . . . . . . . . 200 . . . . . . . . . . . . . . . . . Lost Part 717 | . 40 . 30 . . 10 . 40 50 . 60 . 50 40 20 10 10 . 20 30 100 30 120 . . 10 . . 3 3 41 Lost Ally 520 | . . 20 . . . . . . . . . . 20 20 190 80 20 140 . . 10 20 . . . . . . . . . Purge Threat 300 | . . . . . . . . . . . . . . 150 150 . . . . . . . . . . . . . . . . Squads Dispatched 45 | . 2 . 2 1 . . 3 2 6 . 1 . . 5 2 . . 5 1 . 6 . . . . 2 2 . 1 1 3 Investigation 10 | . 1 . 1 1 . . . 1 1 . . . . . . . . 1 . . 1 . . . . . 1 . . . 2 Extermination 18 | . . . . . . . . . 4 . . . . 3 . . . . 1 . 5 . . . . 2 1 . . 1 1 Reinforcement 11 | . 1 . 1 . . . 1 1 1 . . . . 2 2 . . 1 . . . . . . . . . . 1 . . Assault 4 | . . . . . . . . . . . 1 . . . . . . 3 . . . . . . . . . . . . . Garrison 2 | . . . . . . . 2 . . . . . . . . . . . . . . . . . . . . . . . . Intercept . | . . . . . . . . . . . . . . . . . . . . . . . . . . . . . . . . Searches Triggered 2 | . . . . . . . . . . . . . . 2 . . . . . . . . . . . . . . . . . Data Miner Redirects 3 | . . . . . . . . . . . . . . . . . . 1 . . 1 . . . . . . . . . 1 Construction Impeded 3 | . . . 1 . . . . . . . . . . . 1 . . 1 . . . . . . . . . . . . . Haulers Reinforced 2 | . . . . . . . . . . . . . . 2 . . . . . . . . . . . . . . . . . Active Scanning Responses . | . . . . . . . . . . . . . . . . . . . . . . . . . . . . . . . . Cargo Convoy Interrupts . | . . . . . . . . . . . . . . . . . . . . . . . . . . . . . . . . Stealth | -11 -10 -10 -9 -9 -9 -8 -8 -8 -7 -7 -7 -7 -6 -6 -6 -6 -6 -6 -5 -5 -5 -5 -5 -5 -4 -4 -3 -2 -2 -1 -1 --------- Run | Yrd Mat Min Mat Min Exi Min Mat Sto Fac Low Low Dat Pro Fac Ext Cet Arc Hub Fac Was Fac Upp Upp Zhi Pro Fac Res Res DSF Acc Com Distress Signals 26 | . 5 . 1 . . . 5 2 . . . . . . 3 2 . 1 . . 2 . . . . 2 . . . 1 2 Communications Jammed . | . . . . . . . . . . . . . . . . . . . . . . . . . . . . . . . . Distress Signals . | . . . . . . . . . . . . . . . . . . . . . . . . . . . . . . . . Times Spotted 458 | . 31 7 44 . . 9 30 33 27 3 18 . 13 33 36 11 19 21 3 6 29 30 13 . 12 6 2 . 4 6 12 Peak Tracking Total 9 | . 5 3 4 . . 3 6 3 5 4 9 . 4 5 5 5 2 6 3 6 6 8 4 . 6 7 3 . 4 3 9 Tactical Retreats 43 | . 1 . 1 . . . . 4 3 1 1 . 1 6 2 . . 1 . 1 . 7 2 . 3 5 . . . 1 3 ECM-based Alert Blocks 3 | . . . . . . . . . . . . . . . . . . . . . . . . . . 3 . . . . . Traps | -11 -10 -10 -9 -9 -9 -8 -8 -8 -7 -7 -7 -7 -6 -6 -6 -6 -6 -6 -5 -5 -5 -5 -5 -5 -4 -4 -3 -2 -2 -1 -1 ------- Run | Yrd Mat Min Mat Min Exi Min Mat Sto Fac Low Low Dat Pro Fac Ext Cet Arc Hub Fac Was Fac Upp Upp Zhi Pro Fac Res Res DSF Acc Com Traps Triggered 15 | . . . 3 . . . . 3 1 . . . . . 3 . . 2 1 . 1 . . . . . . . . . 1 Indirectly . | . . . . . . . . . . . . . . . . . . . . . . . . . . . . . . . . Trap Hack Attempts 6 | . . . . . . . . . . . . . . 6 . . . . . . . . . . . . . . . . . Triggered . | . . . . . . . . . . . . . . . . . . . . . . . . . . . . . . . . Disarmed . | . . . . . . . . . . . . . . . . . . . . . . . . . . . . . . . . Reprogrammed 8 | . . . . . . . . . 6 . . . . 2 . . . . . . . . . . . . . . . . . Reused 2 | . . . . . . . . . 1 . . . . 1 . . . . . . . . . . . . . . . . . Traps Extracted . | . . . . . . . . . . . . . . . . . . . . . . . . . . . . . . . . Installed . | . . . . . . . . . . . . . . . . . . . . . . . . . . . . . . . . Triggered 2 | . . . . . . . . . 1 . . . . 1 . . . . . . . . . . . . . . . . . Machines | -11 -10 -10 -9 -9 -9 -8 -8 -8 -7 -7 -7 -7 -6 -6 -6 -6 -6 -6 -5 -5 -5 -5 -5 -5 -4 -4 -3 -2 -2 -1 -1 ---------- Run | Yrd Mat Min Mat Min Exi Min Mat Sto Fac Low Low Dat Pro Fac Ext Cet Arc Hub Fac Was Fac Upp Upp Zhi Pro Fac Res Res DSF Acc Com Machines Disabled 53 | . . . 2 . . . 2 2 3 . 2 . . 2 4 . 4 20 1 . 9 . . . . 2 . . . . . Max in Single Turn 17 | . . . 1 . . . 1 1 1 . 1 . . 1 2 . 1 17 1 . 4 . . . . 1 . . . . . Garrison Access 7 | . . . . . . . . . 1 . . . . 3 . . . 1 . . . . . . . 1 . . . 1 . Network Hub 1 | . . . . . . . . . . . . . . . . . . 1 . . . . . . . . . . . . . Energy Cycler 1 | . . . . . . . . . . . . . . . 1 . . . . . . . . . . . . . . . . Machines Repaired . | . . . . . . . . . . . . . . . . . . . . . . . . . . . . . . . . Machines Dismantled . | . . . . . . . . . . . . . . . . . . . . . . . . . . . . . . . . Machines Sabotaged . | . . . . . . . . . . . . . . . . . . . . . . . . . . . . . . . . Overloaded Fab Kills . | . . . . . . . . . . . . . . . . . . . . . . . . . . . . . . . . Hacking | -11 -10 -10 -9 -9 -9 -8 -8 -8 -7 -7 -7 -7 -6 -6 -6 -6 -6 -6 -5 -5 -5 -5 -5 -5 -4 -4 -3 -2 -2 -1 -1 --------- Run | Yrd Mat Min Mat Min Exi Min Mat Sto Fac Low Low Dat Pro Fac Ext Cet Arc Hub Fac Was Fac Upp Upp Zhi Pro Fac Res Res DSF Acc Com Machines Accessed 121 | . 10 . 15 1 2 . 9 8 14 . 1 3 . 11 8 1 . . 1 . 8 2 1 4 . 5 5 2 . 4 6 Terminals 79 | . 7 . 11 . . . 7 8 7 . . . . 7 8 1 . . . . 7 . 1 . . 1 3 2 . 3 6 Fabricators 9 | . . . . . . . . . 3 . . . . 1 . . . . 1 . 1 . . . . 3 . . . . . Repair Stations 2 | . 1 . 1 . . . . . . . . . . . . . . . . . . . . . . . . . . . . Recycling Units 3 | . 2 . 1 . . . . . . . . . . . . . . . . . . . . . . . . . . . . Scanalyzers 7 | . . . 2 . . . 1 . 3 . . . . . . . . . . . . . . . . . 1 . . . . Garrison Access 8 | . . . . . . . 1 . 1 . . . . 3 . . . . . . . . . . . 1 1 . . 1 . Total Hacks 366 | . 32 . 57 1 5 . 29 23 32 . 1 24 . 18 31 2 . . 1 . 23 2 1 17 . 11 20 3 . 9 24 Successful 192 | . 22 . 35 1 5 . 9 10 21 . 1 24 . 10 14 1 . . 1 . 3 2 1 17 . 5 3 1 . 3 3 Failed 173 | . 10 . 22 . . . 19 13 11 . . . . 8 17 1 . . . . 20 . . . . 6 17 2 . 6 21 Catastrophic 36 | . 2 . 1 . . . 3 . 1 . . . . 3 3 1 . . . . 7 . . . . . 6 1 . 2 6 Database Lockouts 1 | . . . . . . . 1 . . . . . . . . . . . . . . . . . . . . . . . . Manual 115 | . 15 . 33 . 1 . 12 11 9 . . . . 3 16 1 . . . . 8 . . . . 4 . . . . 2 Terminals 251 | . 25 . 48 . . . 24 23 17 . . . . 13 31 2 . . . . 21 . 1 . . 4 9 3 . 6 24 Fabricators 11 | . . . . . . . . . 4 . . . . 1 . . . . 1 . 2 . . . . 3 . . . . . Repair Stations 6 | . 4 . 2 . . . . . . . . . . . . . . . . . . . . . . . . . . . . Recycling Units 5 | . 3 . 2 . . . . . . . . . . . . . . . . . . . . . . . . . . . . Scanalyzers 25 | . . . 5 . . . 2 . 10 . . . . . . . . . . . . . . . . . 8 . . . . Garrison Access 18 | . . . . . . . 3 . 1 . . . . 4 . . . . . . . . . . . 4 3 . . 3 . Terminal Hacks 126 | . 9 . 17 1 5 . 6 7 7 . 1 24 . 6 12 1 . . . . 2 2 1 17 . . 2 1 . 2 3 Record 19 | . . . . . 4 . . . . . 1 6 . . . . . . . . . . 1 5 . . . . . 1 1 Part Schematic 18 | . . . 1 . . . . . . . . 10 . . 3 . . . . . . . . 4 . . . . . . . Robot Schematic 5 | . . . . . . . . . . . . 5 . . . . . . . . . . . . . . . . . . . Robot Analysis 11 | . 3 . 2 . . . 2 . . . . . . . . . . . . . . . . 4 . . . . . . . Prototype ID Bank 18 | . 1 . 3 . . . 2 2 . . . 3 . . 3 . . . . . . . . 4 . . . . . . . Open Door 8 | . . . . 1 . . . 2 . . . . . 1 . 1 . . . . . 2 . . . . . . . . 1 Open DSF 1 | . . . . . . . . . . . . . . . . . . . . . . . . . . . . 1 . . . Level Access Points 2 | . . . . . . . . . 1 . . . . . . . . . . . . . . . . . 1 . . . . Branch Access Points 6 | . . . 1 . . . 1 . . . . . . 1 1 . . . . . 1 . . . . . . . . 1 . Alert Level 8 | . . . 1 . . . . 1 2 . . . . 1 2 . . . . . . . . . . . . . . . 1 Unreport Threat 2 | . . . . . . . . . . . . . . 1 1 . . . . . . . . . . . . . . . . Locate Traps 14 | . 4 . 4 . . . . 1 2 . . . . 1 1 . . . . . 1 . . . . . . . . . . Reprogram Traps 1 | . . . . . . . . . 1 . . . . . . . . . . . . . . . . . . . . . . Dispatch Records 1 | . . . 1 . . . . . . . . . . . . . . . . . . . . . . . . . . . . Recall Extermination 1 | . . . . . . . . . . . . . . . . . . . . . . . . . . . 1 . . . . Hauler Manifests 4 | . 1 . 1 . . . . . 1 . . . . . 1 . . . . . . . . . . . . . . . . Registered Components 2 | . . . 1 . . . . . . . . . . 1 . . . . . . . . . . . . . . . . . Registered Prototypes 1 | . . . 1 . . . . . . . . . . . . . . . . . . . . . . . . . . . . Zone Layout 3 | . . . 1 . . . 1 1 . . . . . . . . . . . . . . . . . . . . . . . Proto ID Catalog 1 | . . . . . 1 . . . . . . . . . . . . . . . . . . . . . . . . . . Fabricator Hacks 8 | . . . . . . . . . 3 . . . . 1 . . . . 1 . . . . . . 3 . . . . . Network Status 6 | . . . . . . . . . 2 . . . . 1 . . . . 1 . . . . . . 2 . . . . . Build 2 | . . . . . . . . . 1 . . . . . . . . . . . . . . . . 1 . . . . . Repair Station Hacks 6 | . 4 . 2 . . . . . . . . . . . . . . . . . . . . . . . . . . . . Scan Component 3 | . 2 . 1 . . . . . . . . . . . . . . . . . . . . . . . . . . . . Repair 3 | . 2 . 1 . . . . . . . . . . . . . . . . . . . . . . . . . . . . Recycling Unit Hacks 4 | . 3 . 1 . . . . . . . . . . . . . . . . . . . . . . . . . . . . Report Inventory 3 | . 2 . 1 . . . . . . . . . . . . . . . . . . . . . . . . . . . . Retrieve Components 1 | . 1 . . . . . . . . . . . . . . . . . . . . . . . . . . . . . . Scanalyzer 14 | . . . 4 . . . 1 . 8 . . . . . . . . . . . . . . . . . 1 . . . . Retrieve Study 14 | . . . 4 . . . 1 . 8 . . . . . . . . . . . . . . . . . 1 . . . . Garrison Access Hacks 6 | . . . . . . . . . 1 . . . . 3 . . . . . . . . . . . 1 . . . 1 . Seal Access 6 | . . . . . . . . . 1 . . . . 3 . . . . . . . . . . . 1 . . . 1 . Unauthorized Hacks 28 | . 6 . 11 . . . 2 3 2 . . . . . 2 . . . . . 1 . . . . 1 . . . . . Terminals 27 | . 6 . 10 . . . 2 3 2 . . . . . 2 . . . . . 1 . . . . 1 . . . . . Assimilate 5 | . . . 3 . . . . . . . . . . . 1 . . . . . 1 . . . . . . . . . . Botnet 15 | . 4 . 4 . . . 1 2 2 . . . . . 1 . . . . . . . . . . 1 . . . . . Disrupt 2 | . 1 . 1 . . . . . . . . . . . . . . . . . . . . . . . . . . . . Operators 5 | . 1 . 2 . . . 1 1 . . . . . . . . . . . . . . . . . . . . . . . Fabricators . | . . . . . . . . . . . . . . . . . . . . . . . . . . . . . . . . Repair Stations . | . . . . . . . . . . . . . . . . . . . . . . . . . . . . . . . . Recycling Units 1 | . . . 1 . . . . . . . . . . . . . . . . . . . . . . . . . . . . Recyclers 1 | . . . 1 . . . . . . . . . . . . . . . . . . . . . . . . . . . . Scanalyzers . | . . . . . . . . . . . . . . . . . . . . . . . . . . . . . . . . Garrison Access . | . . . . . . . . . . . . . . . . . . . . . . . . . . . . . . . . Data Cores Recovered 1 | . . . . . . . . . 1 . . . . . . . . . . . . . . . . . . . . . . Used 1 | . . . . . . . . . 1 . . . . . . . . . . . . . . . . . . . . . . Hacking Detections 73 | . 6 . 9 . . . 8 8 8 . . . . 7 7 1 . . 1 . 7 . 1 . . 1 4 1 . 1 3 Full Trace Events 4 | . 1 . 1 . . . . . 1 . . . . . . . . . . . . . . . . . . . . . 1 Feedback Events . | . . . . . . . . . . . . . . . . . . . . . . . . . . . . . . . . Feedback Blocked . | . . . . . . . . . . . . . . . . . . . . . . . . . . . . . . . . Robot Schematics Acquired 5 | . . . . . . . . . . . . 5 . . . . . . . . . . . . . . . . . . . Robots Built 1 | . . . . . . . . . . . . . . . . . . . . . . . . . . 1 . . . . . Authchips . | . . . . . . . . . . . . . . . . . . . . . . . . . . . . . . . . Time 81 | . . . . . . . . . . . . . . . . . . . . . . . . . . 81 . . . . . Total Robot Build Rating 1 | . . . . . . . . . . . . . . . . . . . . . . . . . . 1 . . . . . Part Schematics Acquired 18 | . . . 1 . . . . . . . . 10 . . 3 . . . . . . . . 4 . . . . . . . Parts Built 2 | . . . . . . . . . 2 . . . . . . . . . . . . . . . . . . . . . . Authchips . | . . . . . . . . . . . . . . . . . . . . . . . . . . . . . . . . Time 95 | . . . . . . . . . 95 . . . . . . . . . . . . . . . . . . . . . . Total Part Build Rating 10 | . . . . . . . . . 10 . . . . . . . . . . . . . . . . . . . . . . Part Studies Acquired 13 | . . . 4 . . . 1 . 7 . . . . . . . . . . . . . . . . . 1 . . . . Parts Repaired 3 | . 2 . 1 . . . . . . . . . . . . . . . . . . . . . . . . . . . . Time 78 | . 52 . 26 . . . . . . . . . . . . . . . . . . . . . . . . . . . . Parts Recycled . | . . . . . . . . . . . . . . . . . . . . . . . . . . . . . . . . Recycled Matter . | . . . . . . . . . . . . . . . . . . . . . . . . . . . . . . . . Retrieved Matter . | . . . . . . . . . . . . . . . . . . . . . . . . . . . . . . . . Retrieved Components 1 | . 1 . . . . . . . . . . . . . . . . . . . . . . . . . . . . . . Parts Scanalyzed . | . . . . . . . . . . . . . . . . . . . . . . . . . . . . . . . . Part Schematics Acquired . | . . . . . . . . . . . . . . . . . . . . . . . . . . . . . . . . Parts Damaged . | . . . . . . . . . . . . . . . . . . . . . . . . . . . . . . . . Bothacking | -11 -10 -10 -9 -9 -9 -8 -8 -8 -7 -7 -7 -7 -6 -6 -6 -6 -6 -6 -5 -5 -5 -5 -5 -5 -4 -4 -3 -2 -2 -1 -1 ------------ Run | Yrd Mat Min Mat Min Exi Min Mat Sto Fac Low Low Dat Pro Fac Ext Cet Arc Hub Fac Was Fac Upp Upp Zhi Pro Fac Res Res DSF Acc Com Used RIF Installer . | . . . . . . . . . . . . . . . . . . . . . . . . . . . . . . . . Robots Hacked 1 | . . . . . . . . . . . . . . . . . . . . . . . . . . . . . . . 1 Non-combat . | . . . . . . . . . . . . . . . . . . . . . . . . . . . . . . . . Combat . | . . . . . . . . . . . . . . . . . . . . . . . . . . . . . . . . Robot Hacks Applied . | . . . . . . . . . . . . . . . . . . . . . . . . . . . . . . . . Manual 1 | . . . . . . . . . . . . . . . . . . . . . . . . . . . . . . . 1 Relay Couplers Released 4 | . . . . . . . . . 3 . . . . . . . . 1 . . . . . . . . . . . . . Machine Destruction 1 | . . . . . . . . . . . . . . . . . . 1 . . . . . . . . . . . . . Programmers 3 | . . . . . . . . . 3 . . . . . . . . . . . . . . . . . . . . . . Fabnet Peak Effective % . | . . . . . . . . . . . . . . . . . . . . . . . . . . . . . . . . Robots Rewired 16 | . . . . . . . . . . . . . . . 16 . . . . . . . . . . . . . . . . Allies Hacked 1 | . . . . . . . . . . . . . . . . . . . . . 1 . . . . . . . . . . Hacks Repelled . | . . . . . . . . . . . . . . . . . . . . . . . . . . . . . . . . Allies | -11 -10 -10 -9 -9 -9 -8 -8 -8 -7 -7 -7 -7 -6 -6 -6 -6 -6 -6 -5 -5 -5 -5 -5 -5 -4 -4 -3 -2 -2 -1 -1 -------- Run | Yrd Mat Min Mat Min Exi Min Mat Sto Fac Low Low Dat Pro Fac Ext Cet Arc Hub Fac Was Fac Upp Upp Zhi Pro Fac Res Res DSF Acc Com Total Allies 39 | . . 1 1 . . . . . . . . . 3 . 22 5 . . . 2 1 3 . . . 1 . . . . . Largest Group 13 | . . 1 1 . . . . . . . . . 2 1 10 13 10 8 . 2 1 1 . . . 1 . . . . . Highest-Rated Group 806 | . . 31 10 . . . . . . . . . 126 85 403 806 725 556 . 282 26 41 . . . 10 . . . . . Highest-Rated Ally 151 | . . 31 10 . . . . . . . . . 85 85 151 151 144 96 . 141 26 41 . . . 10 . . . . . Total Orders 1 | . . . . . . . . . . . . . . . . . . 1 . . . . . . . . . . . . . STAY 1 | . . . . . . . . . . . . . . . . . . 1 . . . . . . . . . . . . . Ally Attacks 237 | . . 16 . . . . . . . . . . 15 2 70 34 25 59 . 10 . 6 . . . . . . . . . Total Damage 6918 | . . 188 . . . . . . . . . . 380 111 1359 1340 960 2000 . 479 . 101 . . . . . . . . . Kills 43 | . . 3 . . . . . . . . . . 4 1 7 8 4 13 . 3 . . . . . . . . . . . Allies Corrupted 2 | . . . . . . . . . . . . . . . . . . 2 . . . . . . . . . . . . . Allies Melted 2 | . . 1 . . . . . . . . . . . . 1 . . . . . . . . . . . . . . . . Field Lobotomies 5 | . . . . . . . . . . . . . 3 . . . . . . 2 . . . . . . . . . . . Intel | -11 -10 -10 -9 -9 -9 -8 -8 -8 -7 -7 -7 -7 -6 -6 -6 -6 -6 -6 -5 -5 -5 -5 -5 -5 -4 -4 -3 -2 -2 -1 -1 ------- Run | Yrd Mat Min Mat Min Exi Min Mat Sto Fac Low Low Dat Pro Fac Ext Cet Arc Hub Fac Was Fac Upp Upp Zhi Pro Fac Res Res DSF Acc Com Active Infowar (turns) 10131 | 143 1347 730 2830 222 422 306 . . 3 520 456 94 211 35 . . . . . . . 982 456 . . 454 250 31 16 384 239 Optics 499 | . . . . . . . . . . . . . . . . . . . . . . . . . . . . . . 260 239 Sensors 3515 | . . . . . . . . . 3 520 456 94 211 35 . . . . . . . 982 456 . . 324 250 31 8 . 145 Terrain 878 | . . . . . . . . . . . . . . . . . . . . . . . . . . . 249 31 16 384 198 Seismic 6000 | 143 1347 730 2830 222 422 306 . . . . . . . . . . . . . . . . . . . . . . . . . Cloaking 1303 | . . . . . . . . . . . . . . . . . . . . . . . . . . 439 250 31 16 384 183 ECM 22 | . . . . . . . . . . . . . . . . . . . . . . . . . . 22 . . . . . Robot Analysis Total 11 | . 3 . 2 . . . 2 . . . . . . . . . . . . . . . . 4 . . . . . . . Derelict Logs Recovered 9 | . . 3 . . . . . . . 1 . . . . . . . . . . . 2 2 . 1 . . . . . . Drone Launches . | . . . . . . . . . . . . . . . . . . . . . . . . . . . . . . . . Drone Recoveries . | . . . . . . . . . . . . . . . . . . . . . . . . . . . . . . . . Exploration | -11 -10 -10 -9 -9 -9 -8 -8 -8 -7 -7 -7 -7 -6 -6 -6 -6 -6 -6 -5 -5 -5 -5 -5 -5 -4 -4 -3 -2 -2 -1 -1 ------------- Run | Yrd Mat Min Mat Min Exi Min Mat Sto Fac Low Low Dat Pro Fac Ext Cet Arc Hub Fac Was Fac Upp Upp Zhi Pro Fac Res Res DSF Acc Com Turns Passed 25445 | 239 1425 730 2830 222 422 467 2129 1701 2163 520 456 94 647 2627 1487 427 378 377 485 121 1857 982 713 169 259 598 250 31 16 384 239 Spaces Moved 16289 | 110 789 419 1156 105 211 194 855 605 1513 437 326 81 345 1766 824 190 144 173 391 80 1083 500 417 164 209 915 565 126 66 932 598 Core 49 | 3 . . . . . . . . . . . . . . . . . . . . . . . . . . . . . . 46 Treads 3533 | 107 506 419 764 105 211 194 855 372 . . . . . . . . . . . . . . . . . . . . . . . Legs 8609 | . . . . . . . . 233 1513 437 326 81 345 1766 824 190 144 173 391 80 1083 500 417 106 . . . . . . . Wheels 675 | . 283 . 392 . . . . . . . . . . . . . . . . . . . . . . . . . . . . Hover . | . . . . . . . . . . . . . . . . . . . . . . . . . . . . . . . . Flight 3423 | . . . . . . . . . . . . . . . . . . . . . . . . 58 209 915 565 126 66 932 552 Fastest Speed 14 | 50 95 160 160 200 200 200 200 130 111 115 112 113 111 112 120 114 114 186 100 110 115 125 110 29 20 26 23 23 14 14 14 Average Speed 119 | 157 136 160 206 200 200 200 210 180 116 115 113 113 136 118 120 117 179 186 106 113 132 138 118 88 27 27 23 23 20 22 25 Slowest Speed 250 | 160 160 160 240 200 200 200 212 212 130 115 185 113 185 190 120 120 187 186 184 140 250 140 125 129 29 32 27 23 23 23 172 Overloaded Moves 134 | . . . . . . . . . . . . . . . . . . . . . . . . . 25 . . . 17 19 73 Propulsion Burnouts . | . . . . . . . . . . . . . . . . . . . . . . . . . . . . . . . . Robots Hopped 22 | . . . . . . . . . . . . . . . . . . . . . . . . . . 6 4 . . 4 8 Potential Cave-ins 5 | . . . . . . . . . . . . . . . . . . . . . . . . . . 2 . . . . 3 Cave-ins Triggered . | . . . . . . . . . . . . . . . . . . . . . . . . . . . . . . . . Exploration Rate (%) 51 | 4 97 92 96 29 59 59 62 81 40 63 58 68 56 44 85 65 79 18 12 64 32 55 57 60 49 24 17 5 86 18 27 Regions Visited 31 Branch Regions 18 Pre-discovered Areas 7 | . . 1 . . 1 . . . . . . 1 . . . . . . . . . 1 . 3 . . . . . . . Known Exits Taken 12 | . . . 1 . . 1 1 . . . . . 1 1 1 . . . . . 1 1 . . . 1 1 1 . 1 . Unknown Exits Taken 16 | 1 1 1 . 1 1 . . 1 1 1 1 1 . . . 1 1 1 . . . . 1 1 1 . . . . . . Scrap Searched 11 | . . 1 . . . 1 . . . 3 1 . 1 . . . . . . . . 3 1 . . . . . . . . Spaces Dug 74 | . . . . . . . . . . . . . . 2 . . . . 3 . 2 13 4 . . 13 8 . . 14 15 Terrain Destroyed 505 | . . 22 1 . . 25 . 4 . . 60 . . 2 18 . 4 222 7 3 61 21 5 . . 13 8 . . 14 15 Melee 59 | . . . . . . . . . . . . . . 2 . . . . . . . 3 4 . . 13 8 . . 14 15 Projectile 58 | . . . . . . . . 4 . . . . . . . . 4 2 7 3 19 18 1 . . . . . . . . AOE 388 | . . 22 1 . . 25 . . . . 60 . . . 18 . . 220 . . 42 . . . . . . . . . . Terrain Rammed . | . . . . . . . . . . . . . . . . . . . . . . . . . . . . . . . . Walls Destroyed . | . . . . . . . . . . . . . . . . . . . . . . . . . . . . . . . . Machines Disabled . | . . . . . . . . . . . . . . . . . . . . . . . . . . . . . . . . Actions | -11 -10 -10 -9 -9 -9 -8 -8 -8 -7 -7 -7 -7 -6 -6 -6 -6 -6 -6 -5 -5 -5 -5 -5 -5 -4 -4 -3 -2 -2 -1 -1 --------- Run | Yrd Mat Min Mat Min Exi Min Mat Sto Fac Low Low Dat Pro Fac Ext Cet Arc Hub Fac Was Fac Upp Upp Zhi Pro Fac Res Res DSF Acc Com Total 20439 | 139 986 457 1431 120 212 237 1053 1069 1766 451 369 84 443 2160 1178 376 200 206 439 92 1327 724 556 187 408 1232 650 126 66 1054 641 Wait 2219 | . 84 20 80 7 . 15 77 328 114 9 14 . 29 185 109 159 15 18 9 1 100 143 46 . 194 283 72 . . 91 17 Move 16217 | 109 788 418 1155 104 210 193 854 604 1512 436 325 80 344 1765 823 189 143 172 391 79 1082 499 416 163 208 902 556 125 65 923 584 Hop 20 | . . . . . . . . . . . . . . . . . . . . . . . . . . 6 4 . . 4 6 Pick Up 223 | 6 12 4 40 2 1 4 18 18 16 3 1 . 4 34 6 6 3 . 8 1 14 6 7 4 . 3 1 . . 1 . Fast Attach 84 | 6 . 1 1 . . . 1 1 . . 1 . 7 5 2 . . . 2 2 17 2 4 8 3 10 2 1 1 4 3 Attach 75 | 1 3 . 6 . . 3 2 5 7 . 5 2 7 4 2 1 1 . 4 . 3 4 9 1 . 1 1 . . . 3 Detach 19 | . . . 1 2 . . . . . . . 2 2 1 . . . . 1 . 1 1 3 1 . 2 . . . . 2 Swap 130 | . 7 2 17 1 . 1 6 7 12 . 3 . 4 36 8 3 1 3 5 . 6 2 1 1 . 1 2 . . . 1 Drop 214 | . 5 . 34 4 1 1 18 20 21 1 . . 1 41 10 6 2 2 8 1 12 4 . 9 3 5 . . . 3 2 Fire 913 | 17 86 12 97 . . 20 77 80 84 2 20 . 45 75 74 12 35 11 11 8 88 33 21 . . 4 . . . . 1 Melee 164 | . . . . . . . . . . . . . . 8 . . . . . . . 30 49 . . 15 12 . . 28 22 Ram 1 | . 1 . . . . . . . . . . . . . . . . . . . . . . . . . . . . . . Kick 4 | . . . . . . . . . . . . . . . . . . . . . 4 . . . . . . . . . . Crush 1 | . . . . . . . . 1 . . . . . . . . . . . . . . . . . . . . . . . Escape Stasis 10 | . . . . . . . . 5 . . . . . . 5 . . . . . . . . . . . . . . . . Rewire 139 | . . . . . . . . . . . . . . . 139 . . . . . . . . . . . . . . . . Trap 6 | . . . . . . . . . . . . . . 6 . . . . . . . . . . . . . . . . . Miscellaneous . | . . . . . . . . . . . . . . . . . . . . . . . . . . . . . . . . Route ------- -11/Scrapyard -10/Materials (discovered 5 exits: *Mat x3 / [*Min x2]) -10/Mines (discovered 3 exits: *Mat x2 / [*Sub]) -9/Materials (discovered 5 exits: *Mat x3 / *Min x2) -9/Mines (discovered 2 exits: *Mat / *Exi) -9/Exiles (discovered 2 exits: [*Min x2]) -8/Mines -8/Materials (discovered 4 exits: *Fac x2 / *Sto x2) -8/Storage -7/Factory (discovered 5 exits: *Fac x4 / [*Low]) -7/Lower Caves -7/Lower Caves -7/Data Miner -6/Proximity Caves -6/Factory (discovered 4 exits: *Low x2 / *Ext x2) -6/Extension (discovered 2 exits: *Fac / *Cet) -6/Cetus (discovered 2 exits: *Fac / [*Arc]) -6/Archives (discovered 2 exits: [*Hub x2]) -6/Hub_04(d) -5/Factory -5/Waste -5/Factory (discovered 2 exits: *Upp x2) -5/Upper Caves -5/Upper Caves -5/Zhirov -4/Proximity Caves -4/Factory -3/Research (discovered 3 exits: *Res x3) -2/Research -2/DSF -1/Access -1/Command History --------- Turn | Location | Event 53 | -11/Scrapyard | Discovered new exit (range 15) 240 | -11/Scrapyard | Entered Materials 317 | -10/Materials | Build established: Mutant 562 | -10/Materials | Discovered new exit (range 8) 781 | -10/Materials | Discovered new exit (range 15) 1088 | -10/Materials | Core integrity fell below 50% 1156 | -10/Materials | Lost 3 parts (1n1u1w) 1212 | -10/Materials | Discovered new exit (range 10) 1268 | -10/Materials | Discovered new exit (range 16) 1365 | -10/Materials | Discovered new exit (range 14) 1404 | -10/Materials | Repaired Lgt. Treads 1461 | -10/Materials | Repaired Lgt. Treads 1665 | -10/Materials | Entered Mines 1716 | -10/Mines | Discovered new exit (range 8) 1959 | -10/Mines | Discovered new exit (range 9) 1964 | -10/Mines | Learned 2 Materials zone layouts 2009 | -10/Mines | Received a Mining Laser from a helpful Derelict 2031 | -10/Mines | Learned location of 1 exit from Materials 2156 | -10/Mines | Discovered new exit (range 14) 2162 | -10/Mines | Found a hidden stash of uninstalled traps 2268 | -10/Mines | Learned location of Mines (-8) 2395 | -10/Mines | Entered Materials 2395 | -9/Materials | Evolved 2 slots: Propulsion x1, Utility x1 2396 | -9/Materials | Identified exit to Mines 2397 | -9/Materials | Identified exit to Materials 2703 | -9/Materials | Build established: Scavenger-Mutant 3934 | -9/Materials | Discovered exit to Materials (range 15) 4595 | -9/Materials | Repaired Lgt. Treads+ 5225 | -9/Materials | Entered Mines 5327 | -9/Mines | Met a Derelict shopkeep closing up shop 5373 | -9/Mines | Discovered exit to Materials (range 15) 5378 | -9/Mines | Build established: Mutant 5431 | -9/Mines | Deemed a non-threat by the Exiles lab entrance 5433 | -9/Mines | Discovered new exit (range 5) 5447 | -9/Mines | Entered Exiles 5473 | -9/Exiles | Discovered new exit (range 15) 5497 | -9/Exiles | Met 8R-AWN 5531 | -9/Exiles | Met EX-HEX 5585 | -9/Exiles | Met EX-BIN 5607 | -9/Exiles | Aligned with FarCom system 5609 | -9/Exiles | Given EX-Vault access code 5655 | -9/Exiles | Opened EX-Vault 5668 | -9/Exiles | Found Field Lobotomy Kit 5721 | -9/Exiles | Warned to stay clear of 0b10 Research branches 5785 | -9/Exiles | Learned location of Zion (-6) 5851 | -9/Exiles | Discovered new exit (range 10) 5869 | -9/Exiles | Left Exiles lab with Field Lobotomy Kit 5869 | -9/Exiles | Entered Mines 6330 | -8/Mines | Discovered exit to Materials (range 3) 6336 | -8/Mines | Entered Materials 6336 | -8/Materials | Evolved 2 slots: Propulsion x1, Utility x1 6814 | -8/Materials | Discovered new exit (range 9) 7216 | -8/Materials | Discovered new exit (range 4) 7383 | -8/Materials | Identified exit to Storage 7733 | -8/Materials | Central database locked down 7794 | -8/Materials | Discovered new exit (range 15) 8364 | -8/Materials | Garrison activated, responded to threat 8465 | -8/Materials | Entered Storage 9674 | -8/Storage | Discovered new exit (range 6) 10166 | -8/Storage | Entered Factory 10166 | -7/Factory | Evolved 2 slots: Propulsion x1, Utility x1 10809 | -7/Factory | Identified exit to Factory 11147 | -7/Factory | Watched by a mysterious "MATRIX" hacker. 11660 | -7/Factory | Fabricated Thermic Laser (x2) 12197 | -7/Factory | Lost 3 parts (2u1w) 12256 | -7/Factory | Discovered new exit (range 15) 12329 | -7/Factory | Entered Lower Caves 12417 | -7/Lower Caves | Found DCF Scrap (16 items) 12649 | -7/Lower Caves | Learned Factory trap positions 12671 | -7/Lower Caves | Encountered a Warlord checkpoint 12781 | -7/Lower Caves | Discovered new exit (range 14) 12849 | -7/Lower Caves | Entered another Lower Caves area 12968 | -7/Lower Caves | Attracted the attention of an 0b10 outpost 13003 | -7/Lower Caves | Destroyed 14 combat bots 13113 | -7/Lower Caves | Core integrity fell below 50% 13132 | -7/Lower Caves | Entered a destroyed Warlord outpost 13148 | -7/Lower Caves | Lost 4 parts (2n2w) 13268 | -7/Lower Caves | Discovered new exit (range 15) 13305 | -7/Lower Caves | Entered Data Miner 13305 | -7/Data Miner | Discovered new exit (range 6) 13328 | -7/Data Miner | Met Data Miner 13349 | -7/Data Miner | Learned location of Section 7 (-2) 13349 | -7/Data Miner | Acquired the access code to Warlord's prototype stash 13365 | -7/Data Miner | Received God Mode back door access code from Data Miner 13399 | -7/Data Miner | Entered Proximity Caves 13402 | -6/Proximity Caves | Spotter reported a threat 13402 | -6/Proximity Caves | Spotter reported a threat 13427 | -6/Proximity Caves | Attracted the attention of an 0b10 checkpoint 13509 | -6/Proximity Caves | Assimilated L-41 Fighter with FLK Orb 13582 | -6/Proximity Caves | Lost 5 parts (1p2n2w) 13616 | -6/Proximity Caves | Spotter reported a threat 13623 | -6/Proximity Caves | Assimilated H-66 Slayer with FLK Orb 13651 | -6/Proximity Caves | Lost 4 parts (2n2w) 13682 | -6/Proximity Caves | Spotter reported a threat 13707 | -6/Proximity Caves | Spotted B-75 Beast 13714 | -6/Proximity Caves | Assimilated B-75 Beast with FLK Orb 13973 | -6/Proximity Caves | Discovered exit to Factory (range 15) 14046 | -6/Proximity Caves | Entered Factory 14046 | -6/Factory | Accompanied by 1 ally 14046 | -6/Factory | Evolved 2 slots: Power x1, Utility x1 14047 | -6/Factory | Loaded intel: 109 trap records 14083 | -6/Factory | Discovered new exit (range 5) 14387 | -6/Factory | Build established: Scavenger-Mutant 14396 | -6/Factory | Search patrols dispatched 14746 | -6/Factory | Search patrols dispatched 14847 | -6/Factory | Build established: Hacker-Mutant 15391 | -6/Factory | Identified exit to Lower Caves 15391 | -6/Factory | Identified exit to Extension 15965 | -6/Factory | Found Prototype Launcher 15965 | -6/Factory | Identified Scatter Rocket Array 16673 | -6/Factory | Entered Extension 16772 | -6/Extension | Rescued a captive Derelict 16796 | -6/Extension | Identified exit to Cetus 16866 | -6/Extension | Rescued a captive Derelict 16990 | -6/Extension | Lost 6 allies 17227 | -6/Extension | Rescued a captive Derelict 17491 | -6/Extension | Spotted B-75 Beast 17506 | -6/Extension | Destroyed B-75 Beast 17510 | -6/Extension | Spotted B-75 Beast 17519 | -6/Extension | Destroyed B-75 Beast 17573 | -6/Extension | Disrupted transfer network 17655 | -6/Extension | Energy Cycler disabled 17655 | -6/Extension | Rescued a captive Derelict 17657 | -6/Extension | Rescued a captive Derelict 17658 | -6/Extension | Rescued a captive Derelict 17659 | -6/Extension | Rescued a captive Derelict 17659 | -6/Extension | Rescued a captive Derelict 17664 | -6/Extension | Rescued a captive Derelict 17781 | -6/Extension | Rescued A7 18049 | -6/Extension | Build established: Commander-Mutant 18063 | -6/Extension | Discovered new exit (range 10) 18160 | -6/Extension | Entered Cetus 18160 | -6/Cetus | Accompanied by 9 allies (A7) 18165 | -6/Cetus | Acquired a Cetus Manufacturing Module code from A7 18176 | -6/Cetus | Spotted Cetus Guard 18177 | -6/Cetus | Spotted Cetus Guard 18178 | -6/Cetus | Spotted Cetus Guard 18179 | -6/Cetus | Spotted Cetus Guard 18182 | -6/Cetus | Allies destroyed Cetus Guard 18188 | -6/Cetus | Allies destroyed Cetus Guard 18191 | -6/Cetus | Allies destroyed Cetus Guard 18193 | -6/Cetus | Destroyed Cetus Guard 18265 | -6/Cetus | Started Cetus Manufacturing Module 18276 | -6/Cetus | Escorted A7 to Cetus Mainframe 18290 | -6/Cetus | Manufactured an Enhanced Grunt 18315 | -6/Cetus | Manufactured an Enhanced Grunt 18340 | -6/Cetus | Manufactured an Enhanced Grunt 18365 | -6/Cetus | Manufactured an Enhanced Grunt 18390 | -6/Cetus | Manufactured an Enhanced Grunt 18411 | -6/Cetus | Discovered new exit (range 15) 18437 | -6/Cetus | Spotted Cetus Guard 18437 | -6/Cetus | Spotted Cetus Guard 18440 | -6/Cetus | Spotted Cetus Guard 18440 | -6/Cetus | Spotted Cetus Guard 18453 | -6/Cetus | Allies destroyed Cetus Guard 18454 | -6/Cetus | Allies destroyed Cetus Guard 18456 | -6/Cetus | Core integrity fell below 50% 18458 | -6/Cetus | Allies destroyed Cetus Guard 18461 | -6/Cetus | Destroyed Cetus Guard 18466 | -6/Cetus | Discovered new exit (range 15) 18472 | -6/Cetus | Met Revision 17 18482 | -6/Cetus | Lost 3 allies 18587 | -6/Cetus | Entered Archives 18587 | -6/Archives | Accompanied by 10 allies (A7) 18592 | -6/Archives | Received a hacking code to weaken MAIN.C 18720 | -6/Archives | Discovered new exit (range 16) 18800 | -6/Archives | Discovered new exit (range 15) 18965 | -6/Archives | Entered Hub_04(d) 18965 | -6/Hub_04(d) | Accompanied by 8 allies 19072 | -6/Hub_04(d) | Spotted B-75 Beast 19082 | -6/Hub_04(d) | Allies destroyed B-75 Beast 19139 | -6/Hub_04(d) | Discovered new exit (range 7) 19315 | -6/Hub_04(d) | First assault squad dispatched 19317 | -6/Hub_04(d) | Network Hub disabled 19320 | -6/Hub_04(d) | Spotted Lightning 19320 | -6/Hub_04(d) | Spotted Lightning 19320 | -6/Hub_04(d) | Spotted Lightning 19331 | -6/Hub_04(d) | Incoming assault squad redirected 19342 | -6/Hub_04(d) | Entered Factory 19342 | -5/Factory | Evolved 2 slots: Propulsion x1, Weapon x1 19356 | -5/Factory | Lost 6 allies 19433 | -5/Factory | Discovered new exit (range 15) 19450 | -5/Factory | Found Prototype Launcher 19450 | -5/Factory | Identified Tesla Bomb Launcher 19613 | -5/Factory | Build established: Scavenger-Skirmisher 19827 | -5/Factory | Sucked down chute 19827 | -5/Factory | Entered Waste 19836 | -5/Waste | Spotted C-40 Crusher 19842 | -5/Waste | EMP discharged 19854 | -5/Waste | Spotted C-40 Crusher 19863 | -5/Waste | Spotted C-40 Crusher 19866 | -5/Waste | Crushed by Compactor (1 part destroyed, 1 dropped) 19874 | -5/Waste | Crushed by Compactor (1 part destroyed, 1 dropped) 19875 | -5/Waste | Spotted C-40 Crusher 19876 | -5/Waste | Spotted C-40 Crusher 19877 | -5/Waste | Crushed by Compactor (0 parts destroyed, 1 dropped) 19880 | -5/Waste | Spotted C-40 Crusher 19880 | -5/Waste | Crushed by Compactor (1 part destroyed) 19882 | -5/Waste | Assimilated C-40 Crusher with FLK Orb 19886 | -5/Waste | Assimilated C-40 Crusher with FLK Orb 19892 | -5/Waste | Allies destroyed C-40 Crusher 19907 | -5/Waste | Allies destroyed C-40 Crusher 19911 | -5/Waste | Lost 3 parts (2n1w) 19930 | -5/Waste | Discovered new exit (range 16) 19942 | -5/Waste | EMP discharged 19942 | -5/Waste | System corruption reached 10% 19948 | -5/Waste | Entered Factory 20166 | -5/Factory | Build established: Scavenger-Mutant 20198 | -5/Factory | Incoming investigation squad redirected 20242 | -5/Factory | Lost 3 parts (1p1n1u) 20861 | -5/Factory | Identified exit to Upper Caves 21669 | -5/Factory | Build established: Hacker-Skirmisher 21805 | -5/Factory | Entered Upper Caves 21853 | -5/Upper Caves | Attracted the attention of an 0b10 outpost 21949 | -5/Upper Caves | Identified exit to Upper Caves 22157 | -5/Upper Caves | Build established: Hacker-Mutant 22471 | -5/Upper Caves | Learned location of Armory (-3) 22787 | -5/Upper Caves | Entered another Upper Caves area 22835 | -5/Upper Caves | Core integrity fell below 50% 22856 | -5/Upper Caves | Lost 3 parts (1p1u1w) 23020 | -5/Upper Caves | System corruption reached 30% 23029 | -5/Upper Caves | Lost 4 parts (2p1n1w) 23055 | -5/Upper Caves | Attracted the attention of an 0b10 checkpoint 23149 | -5/Upper Caves | Learned Factory emergency access door positions 23206 | -5/Upper Caves | Learned Factory machine intel 23298 | -5/Upper Caves | Build established: Scavenger-Mutant 23404 | -5/Upper Caves | Lost 5 parts (2p2n1u) 23480 | -5/Upper Caves | Discovered new exit (range 11) 23500 | -5/Upper Caves | Entered Zhirov 23500 | -5/Zhirov | Discovered new exit (range 3) 23520 | -5/Zhirov | Met Zhirov 23541 | -5/Zhirov | Learned location of Quarantine (-2) 23541 | -5/Zhirov | Learned location of Testing (-3) 23541 | -5/Zhirov | Learned location of Command (-1) 23551 | -5/Zhirov | Zhirov requested help retrieving the SGEMP Prototype 23574 | -5/Zhirov | Found Alien Artifact 23574 | -5/Zhirov | Identified Integrated Reactor 23574 | -5/Zhirov | Installed Integrated Reactor, increased core energy generation (+10) 23589 | -5/Zhirov | Found Alien Artifact 23669 | -5/Zhirov | Entered Proximity Caves 23692 | -4/Proximity Caves | Learned Research security intel 23863 | -4/Proximity Caves | Received a Behemoth hack from an annoying Tinkerer 23905 | -4/Proximity Caves | Build established: Hacker-Sprinter 23908 | -4/Proximity Caves | Spotted B-86 Titan 23919 | -4/Proximity Caves | Discovered new exit (range 13) 23928 | -4/Proximity Caves | Entered Factory 23928 | -4/Factory | Evolved 2 slots: Utility x2 23930 | -4/Factory | Loaded intel: 320 machine locations 24067 | -4/Factory | Fabricated A-02 Transporter? 24124 | -4/Factory | Found Prototype Device 24124 | -4/Factory | Identified Exp. ECM Suite 24196 | -4/Factory | Discovered new exit (range 15) 24211 | -4/Factory | Identified exit to Research 24480 | -4/Factory | Build established: Hacker-Ninja 24526 | -4/Factory | Entered Research 24526 | -3/Research | Evolved 2 slots: Utility x2 24637 | -3/Research | Identified exit to Research 24650 | -3/Research | Declared boring by mysterious "MATRIX" hacker. 24726 | -3/Research | Revision forces began assault on 0b10 24776 | -3/Research | Entered another Research area 24776 | -2/Research | Evolved 2 slots: Utility x2 24804 | -2/Research | Identified exit to DSF 24807 | -2/Research | Entered DSF 24821 | -2/DSF | Discovered new exit (range 10) 24822 | -2/DSF | Identified exit to Access 24823 | -2/DSF | Entered Access 24823 | -1/Access | Evolved 2 slots: Utility x2 24840 | -1/Access | Identified exit to Command 25207 | -1/Access | Entered Command 25230 | -1/Command | Spotted B-99 Colossus 25292 | -1/Command | Incoming investigation squad redirected 25388 | -1/Command | Spotted M Guard 25388 | -1/Command | Spotted M Guard 25389 | -1/Command | Spotted Combat Programmer 25389 | -1/Command | Spotted Combat Programmer 25395 | -1/Command | Met MAIN.C 25399 | -1/Command | Hacked MAIN.C using A7's code 25402 | -1/Command | 0b10 Conduit disabled 25413 | -1/Command | Identified Transdimensional Reconstructor 25413 | -1/Command | Failed to warp due to unstable space 25414 | -1/Command | System corruption reached 10% 25425 | -1/Command | Core integrity fell below 50% 25432 | -1/Command | Core integrity fell below 20% 25446 | -1/Command | Destroyed by Combat Programmer with EMDS Last Messages --------------- 25420_ Combat Programmer resets Combat Programmer, system corruption cleaned. 25421_ Penetrated by EMDS Slug. 25421_ Cld. Impulse Thruster destroyed. 25421_ Imp. System Shield destroyed. 25421_ Door malfunctions. 25422_ EMDS Slug penetrates Reinforced Barrier. 25422_ MAIN.C reaction time slowed by virus. 25423_ Penetrated by EMDS Slug. 25424_ MAIN.C reaction time slowed by virus. 25424_ System Shield destroyed. 25425_ A= SFC7059SDT 25445_ #IQP ,>ZEVOBGSZTNC39PQE=F0S 25445_ Penetrated by EMDS Slug. Map ----- +----------------------------------------------------+ | ?????????????????????????????????????????????????? | | ?????????????????????????????????????????????????? | | ?????????????????????????????????????????????????? | | ?????????????????????????????????????????????????? | | ?????????????????????????????????????????????????? | | ?????????????????????????????????????????????????? | | ??????????????????????#####??????????????????????? | | ??????????????????????# #??????????????????????? | | ??????????????????????# #??????????????????????? | | ??????????????????????# #??????????????????????? | | ??????????????????????# #??????????????????????? | | ??????????????????????# #??????????????????????? | | ??????????????????????# #??????????????????????? | | ??????????????????????# #??????????????????????? | | ??????????????????????# #??????????????????????? | | ??????????????????????# #??????????????????????? | | ??????????????????????# #??????????????????????? | | ??????????????????????# #??????????????????????? | | ??????????????????????# #??????????????????????? | | ??????????????????????# #??????????????????????? | | ??????????????????????# #??????????????????????? | | ####################??# #??????????????????????? | | Y #??# #??????????????????????? | | #??# #??????????????????????? | | Y #??# #??????????????????????? | | ################ #??# @#??????????????????????? | | ???????????????# #??# p#??????????????????????? | | ???????????????# #### #############?#####????? | | ???????????????# T# # # # ### #????? | | ???????????????#+++## pW # ## ###### | | ???????????????# p + | | ???????????????# + | | ???????????????# + | | ???????????????# + | | ???????????????# + | | ???????????????# ### # ## ## ###### | | ???????????????######## ## # ## #????# | | ??????????????????????###### # ##### #######????# | | ???????????????????????????#####??????#??????????# | | ?????????????????????????????????????????????????# | | ?????????????????????????????????????????????????# | | ?????????????????????????????????????????????????# | | ?????????????????????????????????????????????????# | | ?????????????????????????????????????????????????# | | ?????????????????????????????????????????????????# | | ?????????????????????????????????????????????????# | | ?????????????????????????????????????????????????? | | ?????????????????????????????????????????????????? | | ?????????????????????????????????????????????????? | | ?????????????????????????????????????????????????? | +----------------------------------------------------+ Best States ------------- Heat Dissipation 78 Coolant Potential 80 Energy Generation 43 Energy Capacity 540 Matter Stores 300 Matter Capacity 300 Sight Range 20 Robot Scan Range 18 Terrain Scan Range 20 Terrain Scan Density 10 ECM Strength 3 Cloak Strength 3 Armor Coverage 225 Weapon Shielding 90 Phase Shifting 5 Evasion (%) 80 Targeting Accuracy 6 Melee Accuracy 5 Target Analysis 8 Core Analysis 9 Recoil Reduction 4 Offensive Hacking 22 Defensive Hacking 48 Item Schematics ----------------- Hcp. Storage Unit | -9/Materials | Hacked Combat Drone Bay | -7/Data Miner | Free Lgt. Regenerative Plating | -7/Data Miner | Free Cld. Aerolev Unit | -7/Data Miner | Free Thermal Defense Suite | -7/Data Miner | Free Imp. Lightning Gun | -7/Data Miner | Free Antigrav System | -7/Data Miner | Free Imp. Transmission Jammer | -7/Data Miner | Free Hvy. Shock Bomb Launcher | -7/Data Miner | Free Lrn. Sensor Array | -7/Data Miner | Free Adv. System Restoration Module | -7/Data Miner | Free Lrn. Missile Launcher | -6/Extension | Hacked Quantum Capacitor | -6/Extension | Hacked Arm. Leg | -6/Extension | Hacked Assault Drone Bay | -5/Zhirov | Free Exp. Heat Sink | -5/Zhirov | Free Exp. Optical Array | -5/Zhirov | Free Imp. Arc Thrower | -5/Zhirov | Free Robot Schematics ------------------ M-14 Sweeper | -7/Data Miner | Free P-60 Hacker | -7/Data Miner | Free R-10 Processor | -7/Data Miner | Free A-15 Conveyor | -7/Data Miner | Free B-60 Warrior | -7/Data Miner | Free Fabricated ------------ Thermic Laser | x2 | -7/Factory | Preloaded A-02 Transporter | x1 | -4/Factory | Preloaded Repaired ---------- Lgt. Treads | 14% | -10/Materials Lgt. Treads | 37% | -10/Materials Lgt. Treads | 35% | -9/Materials Studied --------- Lgt. Treads | -9/Materials | Hacked Particle Gun | -9/Materials | Hacked Wheel | -9/Materials | Hacked Imp. Treads | -9/Materials | Hacked Aluminum Leg | -8/Materials | Hacked Titanium Leg | -7/Factory | Hacked Carbon-fiber Leg | -7/Factory | Hacked Imp. Titanium Leg | -7/Factory | Hacked Imp. Carbon-fiber Leg | -7/Factory | Hacked Nuclear Core | -7/Factory | Hacked Rnf. Deuterium Engine | -7/Factory | Hacked Hvy. Rocket Launcher | -7/Factory | Hacked Field Propulsion Array | -3/Research | Hacked Alien Tech Used ----------------- Integrated Reactor Transdimensional Reconstructor Achievements -------------- All Kinds Of Bad News Meet Your Maker Overkill Poison In The Code Window Shopping Challenges ------------ None Game ------ Seed GlidesysShiftCutter Manual? 0 Play Time 03:20:30 Cumulative 233.5 hours Start 2026.04.25 @ 13:47:15 End 2026.04.25 @ 17:14:33 Sessions 3 Manual Loads 0 Difficulty Rogue Special Mode None Game No. 286 Rogue 286 Adventurer 0 Explorer 0 Win Type - Total 3 Types 3/0/0/0/0/0/0/0/0/0 Lore% 76 Gallery% 56 Achievement% 44 Wizard Run 0 Options --------- Layout 1 ASCII 0 Keyboard 1 Movement Numpad Keybinds 0 Fullscreen 2 Font 24/Smallcaps Map View 50x35 Zoom Use 0% Tactical HUD 1 Map Filters NONE Filters NONE Steam 1 RUN: 8e8187de-4979-4077-8e87-89e175277aaf